fUST/lending_fUST_20250818
["ID","MTS","AMOUNT","RATE_DAILY","PERIOD"]
[379950108,1755447060263,-2500.0,0.00021364,2]
[379950110,1755447060272,-2500.0,0.00021364,2]
[379950112,1755447060284,-2500.0,0.00021364,2]
[379950114,1755447060293,-2500.0,0.00021364,2]
[379950116,1755447060303,-480.0,0.00021369,2]
[379950118,1755447060313,-480.0,0.00021369,2]
[379950120,1755447060322,-480.0,0.00021369,2]
[379950122,1755447060331,-480.0,0.00021369,2]
[379950124,1755447060341,-480.0,0.00021369,2]
[379950126,1755447060351,-480.0,0.00021369,2]
[379950128,1755447060361,-480.0,0.00021369,2]
[379950130,1755447060370,-3648.89,0.00021369,2]
[379950132,1755447060380,-480.0,0.00021369,2]
[379950134,1755447060390,-480.0,0.00021369,2]
[379950136,1755447060399,-274.61,0.00021369,2]
[379950138,1755447060409,-480.0,0.00021369,2]
[379950140,1755447060418,-557.83,0.00021369,2]
[379950142,1755447060428,-324.58367787,0.00021369,2]
[379950144,1755447060437,-2707.54,0.00021369,2]
[379950146,1755447060446,-999.75,0.00021369,2]
[379950148,1755447060456,-588.85,0.00021369,2]
[379950150,1755447060466,-480.0,0.00021369,2]
[379950152,1755447060475,-512.61,0.00021369,2]
[379950154,1755447060484,-2221.98,0.00021369,2]
[379950156,1755447060494,-1059.03,0.00021369,2]
[379950158,1755447060503,-996.4,0.00021369,2]
[379950160,1755447060514,-480.0,0.00021369,2]
[379950162,1755447060524,-480.0,0.00021369,2]
[379950164,1755447060533,-480.0,0.00021369,2]
[379950166,1755447060543,-480.0,0.00021369,2]
[379950168,1755447060552,-1038.69,0.00021369,2]
[379950170,1755447060561,-480.0,0.00021369,2]
[379950172,1755447060571,-480.0,0.00021369,2]
[379950174,1755447060580,-601.18,0.00021369,2]
[379950176,1755447060590,-4225.92,0.00021369,2]
[379950178,1755447060600,-1139.88,0.00021369,2]
[379950180,1755447060609,-480.0,0.00021369,2]
[379950182,1755447060619,-587.5886558,0.0002137,2]
[379950184,1755447060630,-152.909597,0.00021371,2]
[379950186,1755447060640,-227.68549793,0.00021397,2]
[379950188,1755447060649,-168.55348985,0.00021397,2]
[379950190,1755447060659,-227.6854979,0.00021397,2]
[379950192,1755447060669,-500.0,0.00021413,2]
[379950194,1755447060678,-2200.0,0.00021413,2]
[379950196,1755447060688,-412.43097766,0.00021421,2]
[379950198,1755447060697,-1000.0,0.00021421,2]
[379950200,1755447060708,-1000.0,0.00021421,2]
[379950202,1755447060718,-1000.0,0.00021421,2]
[379950204,1755447060728,-1000.0,0.00021421,2]
[379950206,1755447060738,-500.0,0.00021421,2]
[379950208,1755447060747,-1000.0,0.00021421,2]
[379950210,1755447060758,-1000.0,0.00021421,2]
[379950212,1755447060767,-1000.0,0.00021421,2]
[379950214,1755447060776,-1000.0,0.00021421,2]
[379950216,1755447060785,-174.90361075,0.00021421,2]
[379950218,1755447060796,-1000.0,0.00021421,2]
[379950220,1755447060806,-500.0,0.00021421,2]
[379950221,1755447060815,-1000.0,0.00021421,2]
[379950223,1755447060824,-1000.0,0.00021421,2]
[379950225,1755447060834,-1000.0,0.00021421,2]
[379950227,1755447060843,-1000.0,0.00021421,2]
[379950229,1755447060853,-1000.0,0.00021421,2]
[379950231,1755447060863,-1000.0,0.00021421,2]
[379950233,1755447060872,-1000.0,0.00021421,2]
[379950235,1755447060882,-1000.0,0.00021421,2]
[379950237,1755447060891,-1000.0,0.00021421,2]
[379950239,1755447060900,-1000.0,0.00021421,2]
[379950241,1755447060910,-1000.0,0.00021421,2]
[379950243,1755447060919,-1000.62477378,0.00021421,2]
[379950245,1755447060929,-1000.0,0.00021421,2]
[379950247,1755447060939,-1000.0,0.00021421,2]
[379950249,1755447060951,-1002.75676969,0.00021421,2]
[379950252,1755447060962,-1000.0,0.00021421,2]
[379950254,1755447060972,-501.30889282,0.00021421,2]
[379950256,1755447060982,-1000.0,0.00021421,2]
[379950258,1755447060992,-1000.0,0.00021421,2]
[379950260,1755447061002,-1000.9478934,0.00021421,2]
[379950261,1755447061012,-1000.0,0.00021421,2]
[379950264,1755447061021,-1000.0,0.00021421,2]
[379950266,1755447061032,-1000.0,0.00021421,2]
[379950268,1755447061042,-1000.0,0.00021421,2]
[379950270,1755447061051,-168.0,0.00021421,2]
[379950272,1755447061061,-168.0,0.00021432,2]
[379950274,1755447061071,-168.0,0.0002147,2]
[379950276,1755447061081,-160.0,0.00021476,4]
[379950278,1755447061090,-200.0,0.0002148,2]
[379950280,1755447061099,-500.0,0.00021484,14]
[379950282,1755447061109,-522.748646,0.00021484,14]
[379950284,1755447061118,-62687.0,0.000215,2]
[379950286,1755447061128,-151.0,0.000215,2]
[379950288,1755447061137,-151.0,0.000215,2]
[379950290,1755447061147,-720.0,0.00021517,20]
[379950292,1755447061157,-152.909597,0.0002152,5]
[379950294,1755447061167,-500.0,0.00021556,2]
[379950296,1755447061176,-500.0,0.00021556,2]
[379950298,1755447061186,-500.0,0.00021556,2]
[379950300,1755447061195,-2000.0,0.00021616,2]
[379950302,1755447061204,-2000.0,0.00021616,2]
[379950304,1755447061215,-2000.0,0.00021616,2]
[379950306,1755447061225,-993.46776726,0.00021616,2]
[379950308,1755447061235,-884.47707551,0.00021616,2]
[379950310,1755447061244,-1748.72532384,0.00021616,2]
[379950312,1755447061254,-2000.0,0.00021616,2]
[379950314,1755447061265,-797.6289961,0.00021616,2]
[379950316,1755447061275,-2000.0,0.00021616,2]
[379950318,1755447061284,-212.44499866,0.00021643,2]
[379950320,1755447061294,-684.11239784,0.00021643,2]
[379950322,1755447061304,-480.0,0.00021643,2]
[379950324,1755447061314,-480.0,0.00021643,2]
[379950326,1755447061324,-480.0,0.00021643,2]
[379950328,1755447061334,-480.0,0.00021643,2]
[379950330,1755447061343,-506.43137813,0.00021643,2]
[379950332,1755447061353,-480.0,0.00021643,2]
[379950334,1755447061363,-480.0,0.00021643,2]
[379950336,1755447061372,-3648.89,0.00021643,2]
[379950338,1755447061382,-630.2655957,0.00021643,2]
[379950341,1755447061393,-2518.54132041,0.00021643,2]
[379950343,1755447061402,-213.0227695,0.00021643,2]
[379950344,1755447061411,-851.23898691,0.00021643,2]
[379950346,1755447061420,-480.0,0.00021643,2]
[379950348,1755447061430,-480.0,0.00021643,2]
[379950350,1755447061439,-480.0,0.00021643,2]
[379950352,1755447061449,-557.83,0.00021643,2]
[379950354,1755447061459,-2707.54,0.00021643,2]
[379950356,1755447061468,-999.75,0.00021643,2]
[379950358,1755447061478,-588.85,0.00021643,2]
[379950360,1755447061487,-480.0,0.00021643,2]
[379950362,1755447061497,-512.61,0.00021643,2]
[379950364,1755447061506,-2221.98,0.00021643,2]
[379950366,1755447061517,-1059.03,0.00021643,2]
[379950368,1755447061527,-996.4,0.00021643,2]
[379950370,1755447061536,-480.0,0.00021643,2]
[379950372,1755447061546,-410.03861934,0.00021643,2]
[379950374,1755447061555,-480.0,0.00021643,2]
[379950376,1755447061565,-480.0,0.00021643,2]
[379950378,1755447061575,-1038.69,0.00021643,2]
[379950380,1755447061585,-480.0,0.00021643,2]
[379950382,1755447061595,-480.0,0.00021643,2]
[379950384,1755447061605,-601.18,0.00021643,2]
[379950386,1755447061614,-4225.92,0.00021643,2]
[379950388,1755447061624,-1139.88,0.00021643,2]
[379950390,1755447061634,-480.0,0.00021643,2]
[379950392,1755447061644,-1000.0,0.00021653,5]
[379950394,1755447061654,-800.0,0.00021663,2]
[379950396,1755447061663,-431.9864578,0.00021671,2]
[379950398,1755447061672,-431.9864578,0.00021671,2]
[379950400,1755447061682,-431.9864578,0.00021671,2]
[379950402,1755447061691,-805.03861425,0.00021694,2]
[379950404,1755447061701,-168.55348985,0.00021699,2]
[379950406,1755447061711,-354.573809,0.000217,10]
[379950408,1755447061720,-645.0,0.000217,2]
[379950410,1755447061730,-800.0,0.00021701,2]
[379950412,1755447061739,-431.9864578,0.00021714,2]
[379950414,1755447061749,-428.8703288,0.00021714,2]
[379950416,1755447061759,-863.9729156,0.00021714,2]
[379950418,1755447061769,-431.9864578,0.00021714,2]
[379950420,1755447061779,-431.9864578,0.00021714,2]
[379950422,1755447061788,-431.9864578,0.00021714,2]
[379950424,1755447061798,-370.4213767,0.00021714,2]
[379950426,1755447061807,-800.0,0.00021715,2]
[379950428,1755447061817,-800.0,0.00021721,2]
[379950430,1755447061826,-500.0,0.00021739,2]
[379950432,1755447061836,-168.0,0.00021778,2]
[379950434,1755447061846,-441.33735515,0.00021825,2]
[379950436,1755447061855,-800.0,0.00021826,2]
[379950438,1755447061865,-800.0,0.00021869,2]
[379950440,1755447061875,-446.30682996,0.00021878,2]
[379950442,1755447061884,-168.0,0.0002188,2]
[379950444,1755447061894,-152.909597,0.0002188,5]
[379950446,1755447061903,-560.0,0.00021897,2]
[379950448,1755447061913,-150.0,0.000219,5]
[379950450,1755447061922,-2000.0,0.000219,2]
[379950452,1755447061933,-3000.0,0.00021912,2]
[379950454,1755447061943,-3000.0,0.00021912,2]
[379950456,1755447061956,-3000.0,0.00021912,2]
[379950458,1755447061966,-2958.16229486,0.00021912,2]
[379950469,1755447062067,-41.83770514,0.00021912,2]
[379950471,1755447062077,-761.933,0.00021913,2]
[379950473,1755447062087,-179.184,0.00021913,2]
[379950475,1755447062096,-151.0,0.00021917,2]
[379950477,1755447062107,-480.0,0.00021917,2]
[379950479,1755447062116,-480.0,0.00021917,2]
[379950481,1755447062126,-480.0,0.00021917,2]
[379950483,1755447062136,-480.0,0.00021917,2]
[379950485,1755447062145,-480.0,0.00021917,2]
[379950487,1755447062155,-775.68,0.00021917,2]
[379950489,1755447062165,-90.36529486,0.00021917,2]
[379950491,1755447062176,-685.31470514,0.00021917,2]
[379950494,1755447062186,-775.68,0.00021917,2]
[379950496,1755447062196,-775.68,0.00021917,2]
[379950498,1755447062206,-775.68,0.00021917,2]
[379950500,1755447062215,-775.68,0.00021917,2]
[379950502,1755447062225,-775.68,0.00021917,2]
[379950504,1755447062234,-775.68,0.00021917,2]
[379950506,1755447062244,-775.68,0.00021917,2]
[379950508,1755447062254,-775.68,0.00021917,2]
[379950510,1755447062265,-775.68,0.00021917,2]
[379950512,1755447062275,-209.39665826,0.00021917,2]
[379950514,1755447062284,-3648.89,0.00021917,2]
[379950516,1755447062294,-480.0,0.00021917,2]
[379950518,1755447062304,-480.0,0.00021917,2]
[379950520,1755447062313,-480.0,0.00021917,2]
[379950522,1755447062323,-557.83,0.00021917,2]
[379950524,1755447062332,-2707.54,0.00021917,2]
[379950526,1755447062342,-999.75,0.00021917,2]
[379950528,1755447062352,-218.08090137,0.00021917,2]
[379951310,1755447151882,200.0,0.00024151,120]
[379951311,1755447185398,4245.19531473,0.00018057,2]
[379951312,1755447185425,3706.26362277,0.00018057,2]
[379951313,1755447212560,200.0,0.0002504,120]
[379951314,1755447250051,722.9820939,0.0001819,2]
[379951315,1755447271839,200.0,0.00028204,120]
[379951316,1755447332861,200.0,0.00027581,120]
[379951317,1755447391202,200.0,0.00026539,120]
[379951318,1755447418347,403.70567515,0.00021918,120]
[379951324,1755447452272,200.0,0.00026788,120]
[379951325,1755447484149,514.703906,0.00013699,2]
[379951326,1755447631631,1255.134748,0.00027397,120]
[379951327,1755447634880,200.0,0.00027,120]
[379951328,1755447635768,377.61756,0.000277,120]
[379951331,1755447720931,1000.0,0.00028767,120]
[379951332,1755447728298,1000.0,0.00028767,120]
[379951333,1755447744466,1000.0,0.00028767,120]
[379951334,1755447751484,1000.0,0.00028767,120]
[379951335,1755447765039,1000.0,0.00028767,120]
[379951336,1755447772210,800.0,0.00028767,120]
[379951337,1755447788239,1181.91044999,0.00028767,120]
[379951338,1755447807478,1000.0,0.00017847,2]
[379951342,1755447855171,158.660511,0.00018229,2]
[379951361,1755448068688,3897.38986633,0.00018,2]
[379951362,1755448068712,10000.0,0.00018,2]
[379951363,1755448068734,10000.0,0.00018,2]
[379951364,1755448068755,10000.0,0.00018,2]
[379951365,1755448068778,10000.0,0.00018,2]
[379951366,1755448068800,7989.19608821,0.00018,2]
[379951367,1755448072468,2010.80391179,0.00018,2]
[379951368,1755448072492,2543.41860066,0.00018,2]
[379951369,1755448091208,416.66076192,0.00010618,2]
[379951370,1755448093023,7039.92063742,0.000125,2]
[379951371,1755448093045,4384.38404832,0.000125,2]
[379951379,1755448106170,283.72824245,0.0001,2]
[379951380,1755448111118,5331.88770923,0.00017,2]
[379951381,1755448111140,10000.0,0.00017,2]
[379951382,1755448111162,10000.0,0.00017,2]
[379951383,1755448111183,10000.0,0.00017,2]
[379951384,1755448111204,10000.0,0.00017,2]
[379951385,1755448111227,6310.63984764,0.00017,2]
[379951386,1755448113941,225.14748105,0.00018,2]
[379951387,1755448115202,372.64309246,0.000149,2]
[379951388,1755448115461,1000.0,0.0001,2]
[379951389,1755448115977,2091.56957885,0.00018,2]
[379951390,1755448115999,10000.0,0.00018,2]
[379951391,1755448116021,10000.0,0.00018,2]
[379951392,1755448116043,7304.12968709,0.00018,2]
[379951393,1755448118034,2695.87031291,0.00018371,2]
[379951394,1755448118058,2304.12968709,0.00018371,2]
[379951399,1755448120999,7695.87031291,0.0001,2]
[379951400,1755448121022,3053.34470478,0.0001,2]
[379951402,1755448134331,5000.0,0.00018371,2]
[379951405,1755448149749,1946.65529522,0.00018371,2]
[379951406,1755448149771,3053.34470478,0.00018371,2]
[379951407,1755448165435,5000.0,0.00018371,2]
[379951413,1755448181095,1946.65529522,0.00018371,2]
[379951414,1755448181116,3053.34470478,0.00018371,2]
[379951419,1755448218761,5000.0,0.00018371,2]
[379951491,1755448232351,-1200.0,0.00018788,2]
[379951493,1755448232363,-300.0,0.00018789,2]
[379951495,1755448232373,-300.0,0.00018789,2]
[379951497,1755448232384,-300.0,0.00018789,2]
[379951499,1755448232396,-300.0,0.00018789,2]
[379951501,1755448232407,-2439.90422147,0.0001879,2]
[379951893,1755448237964,-5000.0,0.000186,2]
[379951894,1755448237973,-500.0,0.00018789,2]
[379951895,1755448237982,-500.0,0.00018789,2]
[379951896,1755448237992,-500.0,0.00018789,2]
[379951897,1755448238001,-188.46337404,0.00018789,2]
[379951899,1755448238222,-500.0,0.00018789,2]
[379951900,1755448238239,-500.0,0.00018789,2]
[379951901,1755448238253,-500.0,0.00018789,2]
[379951902,1755448238263,-212.39633134,0.00018789,2]
[379951903,1755448238273,-500.0,0.00018789,2]
[379951904,1755448238285,-293.82001056,0.00018789,2]
[379951905,1755448238294,-446.1731419,0.00018789,2]
[379951906,1755448238303,-500.0,0.00018789,2]
[379951907,1755448238312,-500.0,0.00018789,2]
[379951908,1755448238324,-500.0,0.00018789,2]
[379951909,1755448238335,-174.62207734,0.00018789,2]
[379951910,1755448238345,-500.0,0.00018789,2]
[379951911,1755448238354,-500.0,0.00018789,2]
[379951912,1755448238364,-429.94321138,0.00018789,2]
[379951913,1755448238374,-500.0,0.00018789,2]
[379951914,1755448238383,-500.0,0.00018789,2]
[379951915,1755448238393,-500.0,0.00018789,2]
[379951916,1755448238402,-500.0,0.00018789,2]
[379951917,1755448238412,-500.0,0.00018789,2]
[379951918,1755448238422,-363.90445453,0.00018789,2]
[379951919,1755448238432,-500.0,0.00018789,2]
[379951920,1755448238441,-500.0,0.00018789,2]
[379951921,1755448238451,-500.0,0.00018789,2]
[379951922,1755448238461,-500.0,0.00018789,2]
[379951923,1755448238471,-500.0,0.00018789,2]
[379951924,1755448238481,-500.0,0.00018789,2]
[379951925,1755448238490,-500.0,0.00018789,2]
[379951926,1755448238500,-500.0,0.00018789,2]
[379951927,1755448238510,-500.0,0.00018789,2]
[379951928,1755448238520,-500.0,0.00018789,2]
[379951929,1755448238531,-500.0,0.00018789,2]
[379951930,1755448238541,-463.00817203,0.00018789,2]
[379951931,1755448238550,-500.0,0.00018789,2]
[379951932,1755448238560,-500.0,0.00018789,2]
[379951933,1755448238570,-500.0,0.00018789,2]
[379951934,1755448238580,-500.0,0.00018789,2]
[379951935,1755448238589,-500.0,0.00018789,2]
[379951936,1755448238598,-500.0,0.00018789,2]
[379951937,1755448238608,-500.0,0.00018789,2]
[379951938,1755448238617,-500.0,0.00018789,2]
[379951939,1755448238626,-500.0,0.00018789,2]
[379951940,1755448238636,-500.0,0.00018789,2]
[379951941,1755448238646,-500.0,0.00018789,2]
[379951942,1755448238655,-500.0,0.00018789,2]
[379951943,1755448238665,-500.0,0.00018789,2]
[379951944,1755448238674,-500.0,0.00018789,2]
[379951945,1755448238684,-500.0,0.00018789,2]
[379951946,1755448238693,-500.0,0.00018789,2]
[379951947,1755448238703,-500.0,0.00018789,2]
[379951948,1755448238712,-500.0,0.00018789,2]
[379951949,1755448238721,-500.0,0.00018789,2]
[379951950,1755448238731,-508.63359693,0.00018789,2]
[379951951,1755448238741,-500.0,0.00018789,2]
[379951952,1755448238751,-500.0,0.00018789,2]
[379951953,1755448238760,-220.0,0.00018789,2]
[379951954,1755448238770,-500.0,0.00018789,2]
[379951955,1755448238782,-500.0,0.00018789,2]
[379951956,1755448238792,-500.0,0.00018789,2]
[379951957,1755448238801,-47560.09577853,0.0001879,2]
[379951958,1755448238811,-929.0,0.0001879,2]
[379951959,1755448238821,-500.0,0.00018799,2]
[379951960,1755448238830,-500.0,0.00019,2]
[379951961,1755448238840,-164.08178934,0.00019005,2]
[379951962,1755448238849,-265.94934915,0.0001907,2]
[379951963,1755448238858,-171.51720943,0.00019077,2]
[379951964,1755448238868,-547.03016783,0.00019102,2]
[379951965,1755448238878,-78903.80539617,0.00019103,2]
[379951966,1755448238887,-581.13612384,0.00019105,2]
[379951967,1755448238896,-17842.522448,0.00019166,2]
[379951968,1755448238906,-151.0,0.00019166,2]
[379951969,1755448238915,-151.0,0.00019166,2]
[379951970,1755448238925,-151.0,0.00019166,2]
[379951971,1755448238934,-198.0,0.00019166,2]
[379951972,1755448238945,-151.0,0.00019166,2]
[379951973,1755448238955,-300.0,0.00019166,2]
[379951974,1755448238964,-189.66517374,0.00019166,2]
[379951975,1755448238973,-447.32,0.00019168,3]
[379951976,1755448238983,-200.0,0.00019174,20]
[379951977,1755448238992,-200.0,0.00019174,20]
[379951978,1755448239001,-200.0,0.00019174,20]
[379951979,1755448239011,-200.0,0.00019174,20]
[379951980,1755448239021,-200.0,0.00019174,20]
[379951981,1755448239033,-200.0,0.00019174,20]
[379951982,1755448239042,-200.0,0.00019174,20]
[379951983,1755448239052,-200.0,0.00019174,20]
[379951984,1755448239061,-200.0,0.00019174,20]
[379951985,1755448239070,-200.0,0.00019174,20]
[379951986,1755448239080,-600.0,0.00019174,20]
[379951987,1755448239089,-460.0,0.00019178,2]
[379951988,1755448239099,-460.0,0.00019178,2]
[379951989,1755448239108,-460.0,0.00019178,2]
[379951990,1755448239118,-460.0,0.00019178,2]
[379951991,1755448239127,-461.13533127,0.00019178,2]
[379951992,1755448239137,-448.74976641,0.00019178,2]
[379951993,1755448239147,-460.0,0.00019178,2]
[379951994,1755448239156,-191.1582669,0.00019178,2]
[379951995,1755448239166,-460.0,0.00019178,2]
[379951996,1755448239176,-480.0,0.00019178,2]
[379951997,1755448239186,-480.0,0.00019178,2]
[379951998,1755448239195,-480.0,0.00019178,2]
[379951999,1755448239205,-270.8220388,0.00019178,2]
[379952000,1755448239214,-480.0,0.00019178,2]
[379952001,1755448239224,-480.0,0.00019178,2]
[379952002,1755448239234,-480.0,0.00019178,2]
[379952003,1755448239244,-480.0,0.00019178,2]
[379952004,1755448239253,-480.0,0.00019178,2]
[379952005,1755448239264,-480.0,0.00019178,2]
[379952006,1755448239273,-480.0,0.00019178,2]
[379952007,1755448239288,-480.0,0.00019178,2]
[379952008,1755448239298,-480.0,0.00019178,2]
[379952009,1755448239307,-480.0,0.00019178,2]
[379952010,1755448239318,-480.0,0.00019178,2]
[379952011,1755448239327,-480.0,0.00019178,2]
[379952012,1755448239341,-480.0,0.00019178,2]
[379952013,1755448239351,-196.28044525,0.00019178,2]
[379952014,1755448239360,-463.77544855,0.00019178,2]
[379952015,1755448239370,-480.0,0.00019178,2]
[379952016,1755448239380,-480.0,0.00019178,2]
[379952017,1755448239390,-191.53,0.00019178,2]
[379952018,1755448239400,-480.0,0.00019178,2]
[379952019,1755448239410,-480.0,0.00019178,2]
[379952020,1755448239420,-463.0194137,0.00019178,2]
[379952021,1755448239429,-480.0,0.00019178,2]
[379952022,1755448239439,-480.0,0.00019178,2]
[379952023,1755448239448,-480.0,0.00019178,2]
[379952024,1755448239457,-480.0,0.00019178,2]
[379952025,1755448239466,-480.0,0.00019178,2]
[379952026,1755448239476,-485.66630083,0.00019178,2]
[379952028,1755448239486,-480.0,0.00019178,2]
[379952030,1755448239495,-480.0,0.00019178,2]
[379952032,1755448239505,-480.0,0.00019178,2]
[379952033,1755448239514,-480.0,0.00019178,2]
[379952034,1755448239525,-448.81742787,0.00019178,2]
[379952035,1755448239536,-462.5480471,0.00019178,2]
[379952036,1755448239545,-464.59593915,0.00019178,2]
[379952037,1755448239555,-462.03828615,0.00019178,2]
[379952038,1755448239564,-461.79154528,0.00019178,2]
[379952040,1755448239574,-462.111769,0.00019178,2]
[379952042,1755448239583,-460.0,0.00019178,2]
[379952044,1755448239592,-480.0,0.00019178,2]
[379952046,1755448239602,-460.51946107,0.00019178,2]
[379952048,1755448239611,-480.0,0.00019178,2]
[379952050,1755448239620,-480.0,0.00019178,2]
[379952052,1755448239630,-480.0,0.00019178,2]
[379952054,1755448239639,-3448.83,0.00019178,2]
[379952055,1755448239648,-480.0,0.00019178,2]
[379952056,1755448239659,-480.0,0.00019178,2]
[379952057,1755448239669,-480.0,0.00019178,2]
[379952058,1755448239679,-480.0,0.00019178,2]
[379952059,1755448239688,-4387.99,0.00019178,2]
[379952061,1755448239697,-480.0,0.00019178,2]
[379952063,1755448239707,-480.0,0.00019178,2]
[379952064,1755448239716,-480.0,0.00019178,2]
[379952066,1755448239725,-480.0,0.00019178,2]
[379952068,1755448239735,-480.0,0.00019178,2]
[379952069,1755448239744,-872.21,0.00019178,2]
[379952071,1755448239753,-480.0,0.00019178,2]
[379952073,1755448239763,-480.0,0.00019178,2]
[379952075,1755448239772,-480.0,0.00019178,2]
[379952076,1755448239784,-818.67,0.00019178,2]
[379952078,1755448239795,-480.0,0.00019178,2]
[379952080,1755448239804,-460.57625234,0.00019178,2]
[379952082,1755448239814,-480.0,0.00019178,2]
[379952084,1755448239823,-480.0,0.00019178,2]
[379952086,1755448239833,-518.22,0.00019178,2]
[379952088,1755448239842,-480.0,0.00019178,2]
[379952090,1755448239851,-480.0,0.00019178,2]
[379952092,1755448239860,-1139.38,0.00019178,2]
[379952093,1755448239870,-480.0,0.00019178,2]
[379952094,1755448239879,-480.0,0.00019178,2]
[379952095,1755448239888,-2455.91,0.00019178,2]
[379952096,1755448239897,-647.76,0.00019178,2]
[379952097,1755448239907,-480.0,0.00019178,2]
[379952098,1755448239917,-480.0,0.00019178,2]
[379952099,1755448239926,-480.0,0.00019178,2]
[379952100,1755448239935,-480.0,0.00019178,2]
[379952101,1755448239945,-562.78,0.00019178,2]
[379952102,1755448239954,-480.0,0.00019178,2]
[379952103,1755448239963,-480.0,0.00019178,2]
[379952104,1755448239973,-480.0,0.00019178,2]
[379952105,1755448239982,-480.0,0.00019178,2]
[379952106,1755448239992,-480.0,0.00019178,2]
[379952107,1755448240002,-480.0,0.00019178,2]
[379952108,1755448240012,-480.0,0.00019178,2]
[379952109,1755448240022,-480.0,0.00019178,2]
[379952110,1755448240034,-480.0,0.00019178,2]
[379952111,1755448240045,-480.0,0.00019178,2]
[379952112,1755448240055,-440.0,0.00019178,2]
[379952113,1755448240064,-480.0,0.00019178,2]
[379952114,1755448240073,-480.0,0.00019178,2]
[379952115,1755448240083,-480.0,0.00019178,2]
[379952116,1755448240092,-472.01750494,0.00019178,2]
[379952117,1755448240102,-556.15,0.00019178,2]
[379952118,1755448240111,-480.0,0.00019178,2]
[379952119,1755448240121,-2039.25,0.00019178,2]
[379952120,1755448240130,-480.0,0.00019178,2]
[379952121,1755448240140,-480.0,0.00019178,2]
[379952122,1755448240150,-480.0,0.00019178,2]
[379952123,1755448240159,-480.0,0.00019178,2]
[379952124,1755448240169,-480.0,0.00019178,2]
[379952125,1755448240178,-480.0,0.00019178,2]
[379952126,1755448240188,-3508.85,0.00019178,2]
[379952127,1755448240198,-480.0,0.00019178,2]
[379952128,1755448240207,-480.0,0.00019178,2]
[379952129,1755448240216,-480.0,0.00019178,2]
[379952130,1755448240226,-193.70704487,0.00019178,2]
[379952131,1755448240236,-480.0,0.00019178,2]
[379952132,1755448240246,-480.0,0.00019178,2]
[379952133,1755448240256,-1134.0,0.00019178,2]
[379952134,1755448240265,-480.0,0.00019178,2]
[379952135,1755448240275,-480.0,0.00019178,2]
[379952136,1755448240287,-833.33,0.00019178,2]
[379952138,1755448240296,-480.0,0.00019178,2]
[379952140,1755448240305,-480.0,0.00019178,2]
[379952142,1755448240315,-1081.66,0.00019178,2]
[379952143,1755448240327,-480.0,0.00019178,2]
[379952144,1755448240336,-480.0,0.00019178,2]
[379952145,1755448240346,-480.0,0.00019178,2]
[379952146,1755448240355,-480.0,0.00019178,2]
[379952147,1755448240367,-480.0,0.00019178,2]
[379952148,1755448240376,-480.0,0.00019178,2]
[379952149,1755448240385,-480.0,0.00019178,2]
[379952150,1755448240394,-480.0,0.00019178,2]
[379952151,1755448240403,-2152.56,0.00019178,2]